bitfinex/quotes_ETHUSD_20240825
["timestamp","ask_amount","ask_price","bid_price","bid_amount"]
[1724587207462,3.62918,2755.5,2754.9,3.62985]
[1724587207635,3.62918,2755.5,2754.9,3.97052062]
[1724587207973,3.62918,2755.5,2755.0,4.19755359]
[1724587208177,2.3308,2755.6,2755.2,3.6294]
[1724587208392,2.3308,2755.8,2755.4,3.62914]
[1724587208592,2.3308,2755.8,2755.5,4.19689359]
[1724587208877,2.3308,2755.8,2755.4,3.62914]
[1724587208878,2.3308,2756.1,2755.6,4.19672541]
[1724587209082,3.226709,2756.1,2755.7,0.56770693]
[1724587209375,3.226709,2756.1,2755.6,3.62896]
[1724587209535,3.226709,2756.1,2755.7,0.56771317]
[1724587209737,2.3308,2756.1,2755.6,3.62896]
[1724587209940,5.95919,2756.1,2755.7,0.56770639]
[1724587210137,5.95919,2756.1,2755.8,0.56770639]
[1724587210376,5.95919,2756.1,2755.4,9.58448]
[1724587210538,5.95919,2756.1,2755.5,0.56770367]
[1724587210853,5.95919,2756.1,2755.6,0.56770367]
[1724587211052,5.95919,2756.1,2755.7,0.56770367]
[1724587211260,6.917938,2756.1,2755.8,0.56770367]
[1724587211572,6.917938,2756.1,2755.4,2.3262]
[1724587211573,2.3308,2756.1,2755.4,2.3262]
[1724587211777,2.3308,2756.2,2755.8,3.62862]
[1724587211938,2.3308,2756.2,2755.9,0.56767036]
[1724587212139,2.3308,2756.2,2755.8,3.62862]
[1724587212448,2.3308,2756.2,2755.9,0.56767409]
[1724587212645,2.3308,2756.2,2755.8,3.62862]
[1724587212876,2.3308,2756.2,2755.9,0.56767861]
[1724587213078,2.3308,2756.2,2755.8,3.62862]
[1724587215261,3.62806,2756.3,2755.8,4.354373]
[1724587215458,3.62806,2756.3,2755.9,0.56769093]
[1724587215661,3.62806,2756.3,2755.8,4.354373]
[1724587215662,3.62806,2756.3,2755.8,3.62862]
[1724587215860,2.3308,2756.2,2755.8,3.62862]
[1724587219247,2.3308,2756.2,2755.8,4.354373]
[1724587220795,2.3838,2756.4,2755.9,3.62857]
[1724587222083,3.62799,2756.4,2755.8,3.62862]
[1724587222266,2.3838,2756.3,2755.8,3.62862]
[1724587222596,3.62845,2756.0,2755.3,3.0]
[1724587222794,2.3838,2755.9,2755.2,5.3525]
[1724587222945,2.3838,2755.9,2755.3,0.53525]
[1724587223145,3.62876,2755.8,2755.2,7.25884]
[1724587223785,3.62876,2755.8,2755.3,3.62936]
[1724587224651,2.3794,2755.7,2755.3,3.62936]
[1724587226085,6.00829,2755.7,2755.2,3.62948]
[1724587226251,2.3794,2755.6,2755.2,3.62948]
[1724587226666,2.3794,2755.6,2755.0,7.25932]
[1724587226951,2.3794,2755.5,2755.1,3.62962]
[1724587230593,2.3794,2755.5,2755.1,3.62962]
[1724587231677,2.3794,2755.5,2754.6,6.05291]
[1724587231995,3.62897,2755.6,2754.9,3.62987]
[1724587231996,2.4059,2755.3,2754.9,3.62987]
[1724587234332,2.4059,2755.3,2754.4,3.56880566]
[1724587234333,2.4059,2755.0,2754.5,3.63041]
[1724587237575,2.4059,2755.0,2754.6,3.63024]
[1724587238664,2.4059,2755.0,2754.6,3.63021]
[1724587238863,2.4059,2755.2,2754.7,3.63011]
[1724587239920,6.0354,2755.2,2754.7,3.63011]
[1724587240226,6.0354,2755.2,2754.6,6.06451]
[1724587240765,6.0354,2755.2,2754.6,3.63021]
[1724587241617,6.0354,2755.2,2754.6,7.26043]
[1724587241816,6.0354,2755.2,2754.6,3.63021]
[1724587243085,2.4059,2755.2,2754.6,4.584158]
[1724587243285,2.4059,2755.2,2754.7,3.63006]
[1724587245121,2.4429,2755.1,2754.6,8.214348]
[1724587245315,2.4429,2755.1,2754.6,4.584138]
[1724587245697,2.4429,2755.1,2754.6,8.214348]
[1724587245898,2.4429,2755.1,2754.7,0.8214348]
[1724587246935,2.4429,2755.1,2754.6,3.63019]
[1724587249637,6.07254,2755.1,2754.6,3.63019]
[1724587249942,10.46,2755.5,2754.2,2.4393]
[1724587249943,2.4429,2754.8,2754.2,7.26151]
[1724587250118,2.4429,2754.7,2754.2,7.26151]
[1724587250321,2.4429,2754.7,2754.3,4.356801]
[1724587252239,2.4429,2754.7,2754.3,0.726151]
[1724587252420,2.4429,2754.7,2754.2,3.63072]
[1724587253207,2.4429,2754.7,2754.3,3.63067]
[1724587253411,2.4429,2754.7,2754.4,3.63053]
[1724587253752,6.07279,2754.9,2754.4,7.261]
[1724587254239,2.4429,2754.9,2754.4,7.261]
[1724587254465,2.4429,2754.9,2754.5,3.63042]
[1724587255361,2.4429,2754.9,2754.7,3.6301]
[1724587256376,2.4429,2754.9,2754.6,3.63017]
[1724587256670,2.4429,2754.9,2754.4,4.60051]
[1724587256879,2.4429,2754.9,2754.4,3.63048]
[1724587257292,2.4429,2754.9,2754.5,3.63033]
[1724587257441,2.4429,2754.9,2754.6,3.63029]
[1724587263369,2.4429,2754.9,2754.4,3.63044]
[1724587263876,2.4429,2754.9,2754.5,3.6304]
[1724587265354,2.4429,2754.9,2754.5,7.9869]
[1724587266384,2.4429,2754.9,2754.5,4.3565]
[1724587267082,2.4429,2754.9,2754.5,7.98683]
[1724587267282,2.4429,2754.9,2754.5,7.98676]
[1724587267862,2.4429,2754.9,2754.5,4.35643]
[1724587268706,2.4429,2754.9,2754.3,3.63062]
[1724587269001,2.4888,2754.9,2754.3,3.63062]
[1724587270177,2.4888,2754.7,2754.3,3.63062]
[1724587270784,2.4888,2754.7,2754.3,7.26123]
[1724587271605,2.4888,2754.7,2754.4,3.63053]
[1724587271802,2.4888,2754.7,2754.4,4.356644]
[1724587272103,2.4888,2754.7,2754.2,3.63077]
[1724587272409,2.4888,2754.6,2754.1,3.63085]
[1724587272604,2.4888,2754.6,2754.2,3.63078]
[1724587272770,2.4888,2754.6,2754.1,3.63085]
[1724587273201,3.63043,2754.5,2753.9,3.63113]
[1724587273364,2.4888,2754.4,2753.9,4.79022434]
[1724587273571,2.4888,2754.4,2753.9,8.42135434]
[1724587273995,2.4888,2754.4,2753.9,4.79022434]
[1724587274168,2.4888,2754.4,2753.9,8.42135434]
[1724587275586,2.4888,2754.4,2753.9,4.79022434]
[1724587275910,2.4888,2754.4,2753.9,8.42135434]
[1724587276406,2.4888,2754.4,2754.0,0.34081091]
[1724587276708,2.4888,2754.4,2754.1,0.34081091]
[1724587276901,2.4888,2754.4,2753.9,8.42135434]
[1724587277082,2.4888,2754.4,2754.0,0.34080903]
[1724587277276,2.4888,2754.4,2754.1,0.34080903]
[1724587277476,2.4888,2754.4,2754.0,3.63106]
[1724587277678,2.4888,2754.4,2754.0,4.47318843]
[1724587282225,2.4888,2754.4,2754.1,3.63093]
[1724587283327,2.4888,2754.4,2753.7,3.0]
[1724587283328,2.4855,2754.3,2753.7,6.63136]
[1724587283534,2.4855,2754.3,2753.8,3.63124]
[1724587283715,2.4855,2754.3,2753.8,4.84724998]
[1724587284095,2.4855,2754.3,2754.0,3.63104]
[1724587287253,3.6301,2754.8,2754.1,3.63084]
[1724587287254,5.89396,2754.7,2754.1,3.63084]
[1724587287448,3.6301,2754.8,2754.1,3.63084]
[1724587287449,2.2638,2754.6,2754.1,3.63084]
[1724587287653,2.2638,2754.6,2754.4,3.63053]
[1724587293169,2.2638,2754.6,2754.3,3.63068]
[1724587299341,2.2638,2754.6,2754.1,0.37034551]
[1724587299640,2.2638,2754.6,2753.9,0.56796032]
[1724587299641,2.4384,2754.5,2753.9,3.63119]
[1724587299835,3.63037,2754.6,2753.9,3.63119]
[1724587299836,2.4384,2754.3,2753.9,3.63119]
[1724587303166,2.4384,2754.6,2754.1,7.26172]
[1724587303366,2.4384,2754.6,2754.2,3.63081]
[1724587303768,2.4384,2754.6,2754.3,3.63064]
[1724587305575,2.4384,2754.6,2754.1,4.604842]
[1724587310055,2.4384,2754.6,2754.2,0.90878114]
[1724587310410,2.4384,2754.6,2754.1,4.604842]
[1724587310411,2.4384,2754.6,2754.3,0.90878114]
[1724587310565,2.4384,2754.6,2754.4,0.90878114]
[1724587310879,6.06872,2754.6,2754.1,3.63085]
[1724587311049,6.06872,2754.6,2754.2,0.90879301]
[1724587311250,6.06872,2754.6,2754.3,0.90879301]
[1724587311450,6.06872,2754.6,2754.1,4.357048]
[1724587311663,6.06872,2754.6,2754.2,0.90879439]
[1724587311858,6.06872,2754.6,2754.3,0.90879439]
[1724587312058,6.06872,2754.6,2754.1,4.357048]
[1724587313874,2.4321,2754.5,2754.1,3.63085]
[1724587315059,2.4321,2754.5,2753.9,3.6311]
[1724587315605,2.4321,2754.5,2754.0,3.63108]
[1724587316515,2.4321,2754.5,2754.1,3.63092]
[1724587316814,6.06227,2754.7,2754.1,3.63092]
[1724587317114,6.06227,2754.7,2754.2,0.610222]
[1724587318626,6.06227,2754.7,2754.2,4.241032]
[1724587319188,6.06227,2754.7,2754.2,0.610222]
[1724587321878,2.4321,2754.7,2754.2,4.241022]
[1724587322081,2.4745,2754.9,2754.3,4.4178452]
[1724587323122,2.4745,2754.9,2754.5,3.6304]
[1724587323726,2.4745,2755.3,2754.7,3.63013]
[1724587325335,3.62951,2755.2,2754.7,3.63013]
[1724587325899,2.2572,2755.6,2755.1,3.62961]
[1724587326221,2.2572,2755.6,2755.3,3.62936]
[1724587326423,0.0632578,2755.8,2755.3,3.62928]
[1724587326424,2.2572,2755.8,2755.3,3.62928]
[1724587329636,5.88592,2755.8,2755.3,3.62928]
[1724587330038,5.88592,2755.8,2755.1,7.2591]
[1724587330246,5.88592,2755.8,2755.1,4.60417]
[1724587330247,2.2572,2755.6,2755.1,4.60417]
[1724587332783,2.2572,2755.6,2755.1,0.97457]
[1724587332987,2.2572,2755.6,2754.7,7.356133]
[1724587333349,2.2572,2755.4,2754.8,3.62995]
[1724587333577,5.88644,2755.4,2754.8,3.62995]
[1724587333966,5.88644,2755.4,2754.7,7.356133]
[1724587333967,2.2572,2755.4,2754.9,3.62988]
[1724587334160,2.2572,2755.4,2755.0,0.362988]
[1724587335188,2.2572,2755.6,2755.3,3.62932]
[1724587336794,2.2572,2755.6,2755.3,3.62821953]
[1724587337605,2.2572,2755.8,2755.3,3.62821953]
[1724587338168,2.2572,2755.8,2755.4,3.62923]
[1724587342571,2.2572,2755.8,2755.2,6.6837263]
[1724587342766,2.2572,2755.8,2755.3,3.62936]
[1724587342971,2.2572,2755.8,2755.3,7.25872]
[1724587343173,2.2572,2755.8,2755.4,3.62923]
[1724587343411,3.62858,2755.9,2755.4,3.62923]
[1724587343795,5.94295,2756.0,2755.4,3.7018067]
[1724587344110,5.94295,2756.0,2755.4,4.84711856]
[1724587344309,5.94295,2756.0,2755.4,4.77454186]
[1724587344510,5.94295,2756.0,2755.4,5.34226712]
[1724587345322,2.3145,2756.0,2755.5,3.62909]
[1724587345469,2.3145,2756.0,2755.5,4.46946619]
[1724587347078,2.3145,2756.0,2755.5,4.46939619]
[1724587349809,5.94301,2756.0,2755.5,4.46939619]
[1724587350117,0.06322657,2755.9,2755.5,3.62902]
[1724587351118,0.06322657,2755.9,2755.4,3.62922]
[1724587351498,3.62874,2755.8,2755.2,2.4866]
[1724587351720,6.00816,2755.7,2755.1,3.62951]
[1724587351917,6.00816,2755.7,2755.0,0.362988]
[1724587351918,3.62915,2755.5,2755.0,0.362988]
[1724587352098,3.62915,2755.5,2755.0,3.992748]
[1724587352686,6.00816,2755.7,2755.1,4.3918648]
[1724587353385,6.00816,2755.7,2755.1,8.0214048]
[1724587353721,6.00816,2755.7,2755.1,8.0213448]
[1724587354119,6.00816,2755.7,2755.1,8.0213348]
[1724587354484,2.3793,2755.7,2755.1,6.7141948]
[1724587354687,2.3793,2755.7,2755.3,3.62936]
[1724587357941,2.3793,2755.7,2755.3,3.62928]
[1724587358319,2.3793,2755.7,2755.4,3.62914]
[1724587359518,0.06322657,2755.9,2755.4,3.62914]
[1724587359921,5.90017,2756.0,2755.4,3.62914]
[1724587360818,3.62859,2755.9,2755.3,7.25856]
[1724587361017,3.62859,2755.9,2755.3,8.28742783]
[1724587361846,3.62859,2755.9,2755.4,3.62923]
[1724587362051,2.2717,2756.0,2755.5,3.6291]
[1724587362212,2.2717,2756.0,2755.6,3.62896]
[1724587362414,2.2717,2756.0,2755.7,3.62875]
[1724587362975,2.2717,2756.2,2755.7,4.22100772]
[1724587364615,2.3482,2756.4,2756.0,3.62842]
[1724587364816,2.3482,2756.4,2755.9,3.62856]
[1724587366119,13.43603,2756.5,2756.0,3.62838]
[1724587366346,13.43603,2756.5,2756.0,5.88578]
[1724587366525,13.43603,2756.5,2756.1,0.951434]
[1724587367754,9.8082,2756.5,2756.1,4.579724]
[1724587367976,7.46,2756.5,2756.1,4.579654]
[1724587369934,3.62759,2756.7,2756.1,4.579654]
[1724587373024,3.62759,2756.7,2756.1,8.207894]
[1724587373221,3.62759,2756.7,2756.2,1.0465294]
[1724587375229,13.4356,2756.8,2756.2,4.6746894]
[1724587375488,7.46,2756.8,2756.3,5.88541]
[1724587375790,7.46,2756.8,2756.3,5.88535]
[1724587375990,3.62733,2756.9,2756.4,0.69318794]
[1724587376649,0.06322856,2757.2,2756.7,3.6275]
[1724587377138,5.97504,2757.3,2756.5,5.88513]
[1724587377139,9.60186,2757.3,2756.5,5.88511]
[1724587377339,5.97502,2757.3,2756.7,3.62744]
[1724587377704,9.60185,2757.3,2756.7,3.62744]
[1724587377964,9.60185,2757.3,2756.8,0.362744]
[1724587378111,5.97502,2757.3,2756.8,0.362744]
[1724587380243,3.62692,2757.2,2756.8,0.362744]
[1724587380406,9.60185,2757.3,2756.8,0.362744]
[1724587380753,3.62688,2757.2,2756.8,0.362744]
[1724587380910,2.4034,2757.1,2756.8,0.362744]
[1724587382215,2.4034,2757.1,2756.9,0.3990184]
[1724587383444,6.03022,2757.3,2756.9,0.3990184]
[1724587384954,2.322,2757.6,2757.0,3.62703]
[1724587385109,9.57487,2757.6,2757.0,3.62703]
[1724587385305,5.94841,2757.6,2757.0,3.62703]
[1724587385513,6.543251,2757.6,2757.0,3.62703]
[1724587385957,6.543251,2757.6,2757.1,3.62693]
[1724587386435,5.94841,2757.6,2757.1,3.62693]
[1724587388348,5.94841,2757.6,2756.9,5.88324]
[1724587388553,3.62647,2757.5,2756.9,9.51041]
[1724587389561,3.62647,2757.5,2757.0,3.62711]
[1724587390647,3.62647,2757.5,2756.9,5.88324]
[1724587390648,2.322,2757.3,2756.7,3.62747]
[1724587390846,7.46,2757.9,2756.4,0.69318794]
[1724587390847,2.322,2757.1,2756.4,0.69318794]
[1724587391052,2.322,2757.1,2756.5,3.62766]
[1724587391367,5.94901,2757.1,2756.5,3.62766]
[1724587391673,5.94901,2757.1,2756.6,0.43208479]
[1724587393625,2.322,2757.1,2756.6,4.05970479]
[1724587393861,5.94902,2757.1,2756.6,4.05970479]
[1724587394639,5.94902,2757.1,2756.4,0.69318794]
[1724587394640,2.322,2757.1,2756.4,0.69318794]
[1724587394969,3.62754,2756.7,2756.1,3.62825]
[1724587395486,2.322,2756.8,2756.3,3.62796]
[1724587397582,2.38521315,2756.8,2756.3,3.62796]
[1724587397751,2.38521315,2756.8,2756.3,4.353581]
[1724587400250,2.492,2756.6,2755.9,10.96846]
[1724587400445,2.492,2756.6,2756.0,3.62833]
[1724587400859,2.492,2756.6,2756.0,7.25667]
[1724587401403,2.492,2756.6,2756.0,3.62833]
[1724587401404,6.11965,2756.6,2756.0,3.62833]
[1724587402076,6.11965,2756.6,2756.0,7.2567]
[1724587402275,6.11965,2756.6,2756.0,8.71637]
[1724587402646,6.11965,2756.6,2756.0,5.088]
[1724587403284,0.06321315,2756.8,2755.7,0.59225772]
[1724587403285,2.492,2756.4,2755.7,0.59225772]
[1724587403486,2.492,2756.4,2755.8,3.62861]
[1724587404086,6.12003,2756.4,2755.8,3.62861]
[1724587405548,3.62807,2756.3,2755.8,3.62861]
[1724587407027,2.492,2756.4,2755.8,4.354361]
[1724587407178,2.492,2756.4,2756.0,3.62833]
[1724587408383,2.492,2756.4,2756.1,3.62828]
[1724587408581,2.492,2756.4,2756.0,3.62833]
[1724587416813,2.492,2756.4,2755.8,10.355501]
[1724587417018,2.492,2756.4,2755.9,1.0355501]
[1724587417219,2.492,2756.4,2755.9,4.6641101]
[1724587417615,2.4198,2756.3,2755.9,1.0355501]
[1724587417832,2.4198,2756.3,2755.8,3.62858]
[1724587419921,6.04788,2756.3,2755.8,3.62858]
[1724587420320,3.62825,2756.2,2755.6,3.62892]
[1724587420538,3.62832,2756.1,2755.6,3.62892]
[1724587420837,3.62832,2756.1,2755.6,5.327851]
[1724587422117,5.99992,2756.0,2755.6,1.698931]
[1724587422321,5.99992,2756.0,2755.5,7.34]
[1724587422322,3.62871,2755.8,2755.5,7.34]
[1724587422625,5.99992,2756.0,2755.5,7.34]
[1724587422626,9.62848,2756.0,2755.5,7.34]
[1724587424037,5.99992,2756.0,2755.5,7.34]
[1724587426410,5.99992,2756.0,2755.4,3.62916]
[1724587426610,5.99992,2756.0,2755.4,7.2583]
[1724587426830,5.99992,2756.0,2755.4,8.21025]
[1724587427215,3.62826,2756.2,2755.7,3.62876]
[1724587427216,2.2834,2756.2,2755.7,3.62876]
[1724587428016,2.2834,2756.2,2755.8,3.62869]
[1724587428422,2.2834,2756.2,2755.9,3.62855]
[1724587428638,2.2834,2756.2,2755.8,3.62869]
[1724587428809,2.2834,2756.2,2755.9,0.362869]
[1724587430642,5.94989,2756.4,2755.9,0.362869]
[1724587431652,2.3219,2756.4,2755.9,3.991369]
[1724587432219,2.3219,2756.4,2755.9,6.366469]
[1724587432426,2.3219,2756.4,2756.0,0.9995089]
[1724587434627,2.3219,2756.4,2756.0,4.6279489]
[1724587434830,0.06322462,2756.5,2756.0,4.6278689]
[1724587436566,0.06322462,2756.5,2756.0,8.2562289]
[1724587437088,0.06322462,2756.5,2756.0,4.6278689]
[1724587437385,0.06322462,2756.5,2756.1,2.90823105]
[1724587437587,2.3219,2756.8,2756.2,3.62816]
[1724587437737,2.3219,2756.8,2756.2,3.70064514]
[1724587437935,2.3219,2756.8,2756.3,3.70057518]
[1724587438271,2.3219,2756.8,2756.4,3.6279]
[1724587439644,3.62731,2756.9,2756.4,4.39480771]
[1724587442167,6.09984182,2757.0,2756.4,4.39472771]
[1724587442339,2.4095,2757.0,2756.5,3.62768]
[1724587442761,2.4095,2757.0,2756.6,3.62765]
[1724587443567,2.4095,2757.0,2756.4,6.65720771]
[1724587443762,2.4095,2757.0,2756.5,4.32755341]
[1724587444342,6.03665,2757.0,2756.5,4.32755341]
[1724587444537,3.62729,2756.9,2756.5,0.69977341]
[1724587444743,2.4095,2757.0,2756.5,0.69977341]
[1724587445147,6.03663,2757.0,2756.5,4.32753341]
[1724587446338,6.03663,2757.0,2756.6,0.79553634]
[1724587446965,2.4095,2757.0,2756.6,4.42316634]
[1724587447566,3.62701,2757.1,2756.6,4.42309634]
[1724587447772,2.3067,2757.2,2756.6,4.42307634]
[1724587448081,3.627,2757.1,2756.6,4.42307634]
[1724587449270,3.627,2757.1,2756.7,0.68530763]
[1724587455391,7.2541,2757.1,2756.7,0.68530763]
[1724587455562,7.2541,2757.1,2756.6,4.42307634]
[1724587456051,3.627,2757.1,2756.6,4.42307634]
[1724587456490,7.25408,2757.1,2756.6,4.42307634]
[1724587457091,3.627,2757.1,2756.6,4.42307634]
[1724587457466,3.627,2757.1,2756.6,6.70387634]
[1724587458551,7.25407,2757.1,2756.6,6.70387634]
[1724587458753,3.627,2757.1,2756.6,6.70387634]
[1724587460456,9.69258,2757.1,2756.6,6.70387634]
[1724587460657,9.69258,2757.1,2756.6,0.79553634]
[1724587462893,0.06319839,2757.0,2756.6,0.79553634]
[1724587466728,0.06319839,2757.0,2756.7,2.79273063]
[1724587470066,0.06319839,2757.0,2756.6,0.79553634]
[1724587470364,6.02112839,2757.0,2756.4,3.62784]
[1724587470588,6.02112839,2757.0,2756.4,7.25567]
[1724587473831,6.02112839,2757.0,2756.5,3.62777]
[1724587474588,3.69032839,2757.0,2756.5,3.62777]
[1724587474824,0.06319839,2757.0,2756.5,3.62777]
[1724587474992,0.06319839,2757.0,2756.6,0.72556]
[1724587475193,0.06319839,2757.0,2756.7,0.56750723]
[1724587475410,0.06319839,2757.0,2756.8,0.56750723]
[1724587475622,0.06319839,2757.0,2756.9,0.56750723]
[1724587475785,0.06319839,2757.0,2756.9,0.56750335]
[1724587476609,0.06319839,2757.0,2756.6,0.72556]
[1724587476812,0.06319839,2757.0,2756.9,0.56750385]
[1724587478707,3.627,2757.1,2756.9,0.56750385]
[1724587478907,3.627,2757.1,2756.5,3.70031584]
[1724587479113,3.627,2757.1,2756.6,0.5675035]
[1724587479320,3.627,2757.1,2756.7,0.5675035]
[1724587479516,3.627,2757.1,2756.8,0.5675035]
[1724587479724,3.627,2757.1,2756.9,0.5675035]
[1724587479992,3.627,2757.1,2756.5,3.70031584]
[1724587480238,3.627,2757.1,2756.6,1.30032454]
[1724587480403,3.627,2757.1,2756.7,0.56750996]
[1724587480595,3.627,2757.1,2756.8,0.56750996]
[1724587480793,3.627,2757.1,2756.9,0.56750996]
[1724587481003,3.627,2757.1,2756.6,0.73281458]
[1724587481210,3.627,2757.1,2756.7,0.56750987]
[1724587481409,3.627,2757.1,2756.8,0.56750987]
[1724587481410,7.25409,2757.1,2756.8,0.56750987]
[1724587481791,7.25409,2757.1,2756.9,0.56750987]
[1724587481910,7.25409,2757.1,2756.6,0.73281458]
[1724587482105,7.25409,2757.1,2756.7,0.56750896]
[1724587482312,7.25409,2757.1,2756.8,0.56750896]
[1724587482608,7.25409,2757.1,2756.9,0.56750896]
[1724587482841,7.25409,2757.1,2756.6,0.73281458]
[1724587483028,7.25409,2757.1,2756.7,0.56750879]
[1724587483202,3.62713,2757.0,2756.8,0.56750879]
[1724587483402,3.62713,2757.0,2756.4,7.25567]
[1724587483731,3.62713,2757.0,2756.5,1.52813505]
[1724587483904,3.62713,2757.0,2756.6,0.56752805]
[1724587484103,3.62713,2757.0,2756.7,0.56752805]
[1724587484302,3.62713,2757.0,2756.8,0.56752805]
[1724587484521,3.62713,2757.0,2756.4,7.25567]
[1724587484723,3.62713,2757.0,2756.5,1.52813024]
[1724587485036,3.62713,2757.0,2756.6,0.56752324]
[1724587485233,3.62713,2757.0,2756.7,0.56752324]
[1724587485442,3.62713,2757.0,2756.8,0.56752324]
[1724587485617,3.62713,2757.0,2756.5,0.960607]
[1724587485939,3.62713,2757.0,2756.6,0.5675134]
[1724587486103,3.62713,2757.0,2756.7,0.5675134]
[1724587486304,3.62713,2757.0,2756.8,0.5675134]
[1724587486618,3.62713,2757.0,2756.5,0.960607]
[1724587486816,3.62713,2757.0,2756.6,0.56751318]
[1724587487029,3.62713,2757.0,2756.7,0.56751333]
[1724587487329,3.62713,2757.0,2756.8,0.56751333]
[1724587487530,3.62713,2757.0,2756.5,0.960607]
[1724587487836,2.2781,2756.9,2756.6,0.56751332]
[1724587488018,2.2781,2756.9,2756.7,0.56751332]
[1724587488216,2.2781,2756.9,2756.8,0.56751332]
[1724587489755,3.62713,2757.0,2756.8,0.56751332]
[1724587489941,3.62713,2757.0,2756.5,0.960607]
[1724587490150,3.62713,2757.0,2756.6,0.8216287]
[1724587490454,3.62713,2757.0,2756.7,0.56751324]
[1724587490655,3.62713,2757.0,2756.8,0.56751324]
[1724587490815,3.62713,2757.0,2756.4,7.25568]
[1724587491017,3.62713,2757.0,2756.5,0.56751335]
[1724587491212,3.62713,2757.0,2756.6,0.56751335]
[1724587491437,3.62713,2757.0,2756.7,0.56751335]
[1724587491641,3.62713,2757.0,2756.8,0.56751335]
[1724587491829,3.62713,2757.0,2756.5,0.65457334]
[1724587492029,3.62713,2757.0,2756.6,0.56752689]
[1724587492251,3.62713,2757.0,2756.7,0.56752689]
[1724587492443,3.62713,2757.0,2756.8,0.56752689]
[1724587492642,3.62713,2757.0,2756.5,0.65457334]
[1724587492842,3.62713,2757.0,2756.6,0.56752569]
[1724587493041,3.62713,2757.0,2756.7,0.56752569]
[1724587493232,3.62713,2757.0,2756.8,0.56752569]
[1724587493534,3.62713,2757.0,2756.5,0.65457334]
[1724587493729,3.62713,2757.0,2756.6,0.79102233]
[1724587494058,5.9051,2757.1,2756.7,0.56752479]
[1724587494361,5.9051,2757.1,2756.8,0.56752479]
[1724587494520,5.9051,2757.1,2756.6,0.79102233]
[1724587494720,5.9051,2757.1,2756.7,0.56751757]
[1724587495031,9.53219,2757.1,2756.8,0.56751757]
[1724587495232,5.9051,2757.1,2756.6,0.79102233]
[1724587495433,5.9051,2757.1,2756.7,1.0748539]
[1724587495633,5.9051,2757.1,2756.8,0.56751733]
[1724587495833,9.53219,2757.1,2756.7,0.50733657]
[1724587496130,9.53219,2757.1,2756.8,0.56751748]
[1724587496330,5.9051,2757.1,2756.7,0.50733657]
[1724587496531,9.53219,2757.1,2756.8,0.56751748]
[1724587496746,9.53219,2757.1,2756.7,0.50733657]
[1724587496950,5.9051,2757.1,2756.8,0.5675183]
[1724587497148,9.53218,2757.1,2756.7,0.50733657]
[1724587497352,5.9051,2757.1,2756.8,0.56751769]
[1724587497685,5.9051,2757.1,2756.7,0.50733657]
[1724587497973,5.9051,2757.1,2756.8,0.56751761]
[1724587498177,5.9051,2757.1,2756.7,0.50733657]
[1724587498379,5.9051,2757.1,2756.8,0.56751745]
[1724587498541,5.9051,2757.1,2756.7,0.50733657]
[1724587498840,5.9051,2757.1,2756.8,0.56751757]
[1724587499042,9.53218,2757.1,2756.6,0.79102233]
[1724587499241,0.06319795,2757.0,2756.7,0.56751758]
[1724587499443,0.06319795,2757.0,2756.8,0.56751758]
[1724587499740,0.06319795,2757.0,2756.6,0.79102233]
[1724587499939,0.06319795,2757.0,2756.7,1.00939985]
[1724587500153,0.06319795,2757.0,2756.8,0.56752062]
[1724587500340,3.6273,2756.9,2756.0,3.66338428]
[1724587500536,3.6273,2756.9,2756.4,4.74021029]
[1724587500741,2.438,2756.8,2756.5,1.27659689]
[1724587500937,6.06548,2756.8,2756.6,0.56753586]
[1724587501164,6.06548,2756.8,2756.7,0.56753586]
[1724587502561,3.69042795,2757.0,2756.7,0.56753586]
[1724587502761,3.69042795,2757.0,2756.4,4.17273309]
[1724587502762,0.06319795,2757.0,2756.8,0.56751677]
[1724587502962,2.27898287,2757.2,2756.8,3.62739]
[1724587503167,11.08676,2757.3,2756.9,3.989989]
[1724587503168,7.46,2757.3,2756.9,3.989989]
[1724587503437,2.438,2757.4,2757.1,3.62697]
[1724587503744,6.06436,2757.6,2757.1,3.62697]
[1724587504268,6.11873,2757.7,2757.1,3.62697]
[1724587505243,3.62635,2757.6,2757.1,3.62697]
[1724587505948,6.11873,2757.7,2756.9,3.989929]
[1724587505949,3.62647,2757.5,2756.9,3.989929]
[1724587506194,3.62647,2757.5,2757.0,0.6362229]
[1724587507547,2.4925,2757.4,2757.0,0.6362229]
[1724587510044,2.4925,2757.4,2757.0,4.2633429]
[1724587512800,6.11917,2757.4,2757.0,0.6362229]
[1724587513003,6.11917,2757.4,2756.9,0.362739]
[1724587516691,6.11917,2757.4,2756.9,3.989989]
[1724587517006,2.4925,2757.4,2756.9,3.989899]
[1724587517703,3.62649,2757.5,2757.0,5.93945]
[1724587517853,3.62649,2757.5,2757.1,0.9929349]
[1724587518517,3.62649,2757.5,2757.0,3.62705]
[1724587521191,2.3239,2757.6,2757.1,3.62699]
[1724587522669,5.95027,2757.6,2757.1,3.62699]
[1724587523860,5.95027,2757.6,2756.9,7.617039]
[1724587524056,5.95027,2757.6,2757.0,3.6271]
[1724587524269,5.95027,2757.6,2757.0,4.65408261]
[1724587524859,0.0631877,2757.5,2757.0,4.65408261]
[1724587525298,0.0631877,2757.5,2757.1,3.62697]
[1724587525662,5.95027,2757.6,2757.1,3.62697]
[1724587528610,2.3239,2757.6,2757.1,3.62697]
[1724587528813,2.3239,2757.6,2757.2,0.46539526]
[1724587529014,2.3239,2757.6,2757.2,4.09225526]
[1724587529536,2.3239,2757.6,2757.3,3.62666]
[1724587530635,2.3239,2757.6,2757.2,0.46539526]
[1724587530851,2.3239,2757.6,2757.2,4.09223526]
[1724587531055,2.3239,2757.6,2757.3,0.40922353]
[1724587532525,14.7118,2758.0,2757.3,0.40922353]